fUST/lending_fUST_20240914
["ID","MTS","AMOUNT","RATE_DAILY","PERIOD"]
[338147313,1726306240533,-500.0,0.00024605,2]
[338147314,1726306240552,-500.0,0.00024605,2]
[338147315,1726306240564,-490.9329752,0.00024605,2]
[338147316,1726306240574,-500.0,0.00024605,2]
[338147317,1726306240584,-500.0,0.00024605,2]
[338147318,1726306240594,-500.0,0.00024605,2]
[338147319,1726306240604,-500.0,0.00024605,2]
[338147320,1726306240614,-500.0,0.00024605,2]
[338147321,1726306240624,-553.50624607,0.00024605,2]
[338147322,1726306240634,-500.0,0.00024605,2]
[338147323,1726306240645,-585.07373793,0.00024605,2]
[338147324,1726306240655,-500.0,0.00024605,2]
[338147325,1726306240665,-500.0,0.00024605,2]
[338147326,1726306240676,-500.0,0.00024605,2]
[338147327,1726306240687,-305.34881196,0.00024605,2]
[338147328,1726306240697,-500.0,0.00024605,2]
[338147329,1726306240707,-500.0,0.00024605,2]
[338147330,1726306240718,-187.762137,0.00024605,7]
[338147331,1726306240728,-151.0,0.00024605,7]
[338147332,1726306240738,-187.762137,0.00024605,7]
[338147333,1726306240748,-164.602654,0.00024605,7]
[338147334,1726306240758,-164.602654,0.00024605,7]
[338147335,1726306240768,-169.097935,0.00024605,7]
[338147336,1726306240779,-151.0,0.00024605,7]
[338147337,1726306240789,-151.0,0.00024605,7]
[338147338,1726306240799,-151.0,0.00024605,7]
[338147339,1726306240810,-7574.65237716,0.00024605,7]
[338147340,1726306240824,-35986.73455107,0.00024605,7]
[338147341,1726306240834,-4209.5341121,0.00024605,3]
[338147342,1726306240847,-1241.75132697,0.00024605,3]
[338147373,1726306243119,-155.56518324,0.00024605,2]
[338147374,1726306243129,-500.0,0.00024605,2]
[338147375,1726306243139,-500.0,0.00024605,2]
[338147376,1726306243150,-462.5168169,0.00024605,2]
[338147377,1726306243173,-187.4831831,0.00024605,2]
[338147378,1726306243187,-500.0,0.00024605,2]
[338147379,1726306243197,-500.0,0.00024605,2]
[338147380,1726306243208,-500.0,0.00024605,2]
[338147381,1726306243220,-9690.717664,0.00024605,3]
[338147382,1726306243232,-341.66,0.00024605,3]
[338147383,1726306243244,-586.6757247,0.00024605,3]
[338147390,1726306246341,-110870.11943223,0.00024605,3]
[338147391,1726306246353,-142305.99341172,0.00024606,3]
[338147392,1726306246366,-636.5220442,0.00024606,3]
[338147422,1726307438425,-162.468613,0.00013699,2]
[338147423,1726307438435,-203.325346,0.00022901,2]
[338147424,1726307438444,-209.321711,0.00023245,2]
[338147425,1726307438453,-465.00006888,0.0002352,2]
[338147426,1726307438463,-343.52,0.00024,2]
[338147427,1726307438472,-302.51602579,0.00024,2]
[338147428,1726307438481,-302.51602579,0.0002424,2]
[338147429,1726307438490,-302.51602579,0.0002448,2]
[338147430,1726307438500,-300.0,0.00024503,2]
[338147431,1726307438511,-300.0,0.00024503,2]
[338147432,1726307438520,-1000.0,0.00024504,2]
[338147433,1726307438530,-151.24291427,0.00024557,2]
[338147434,1726307438539,-204.78,0.00024584,3]
[338147435,1726307438549,-614.35,0.00024584,3]
[338147436,1726307438559,-160.56293787,0.00024593,2]
[338147437,1726307438568,-559.61365552,0.00024593,2]
[338147438,1726307438578,-500.0,0.00024593,2]
[338147439,1726307438587,-422.79743668,0.00024593,2]
[338147440,1726307438597,-198.86832969,0.00024593,2]
[338147441,1726307438606,-500.0,0.00024593,2]
[338147442,1726307438617,-500.0,0.00024593,2]
[338147443,1726307438627,-500.0,0.00024593,2]
[338147444,1726307438636,-500.0,0.00024593,2]
[338147445,1726307438645,-500.0,0.00024593,2]
[338147446,1726307438655,-500.0,0.00024593,2]
[338147447,1726307438664,-500.0,0.00024593,2]
[338147448,1726307438674,-500.0,0.00024593,2]
[338147449,1726307438683,-500.0,0.00024593,2]
[338147450,1726307438692,-500.0,0.00024593,2]
[338147451,1726307438701,-500.0,0.00024593,2]
[338147452,1726307438711,-500.0,0.00024593,2]
[338147453,1726307438721,-500.0,0.00024593,2]
[338147454,1726307438730,-500.0,0.00024593,2]
[338147455,1726307438739,-499.99999999,0.00024593,2]
[338147456,1726307438750,-32671.04019617,0.00024593,7]
[338147457,1726307438762,-272.87767927,0.00024594,3]
[338147458,1726307438782,-461.03,0.00024594,3]
[338147502,1726307440420,-302.51602579,0.00024,2]
[338147504,1726307440430,-302.51602579,0.0002424,2]
[338147506,1726307440440,-302.51602579,0.0002448,2]
[338147508,1726307440449,-12669.52857774,0.00024594,3]
[338147510,1726307440460,-5704.30446902,0.00024594,3]
[338147513,1726307440472,-5325.22421767,0.00024594,3]
[338147609,1726307443446,-59255.95758917,0.00024594,3]
[338147817,1726307446489,-56563.25977164,0.00024594,3]
[338147818,1726307446800,-15812.91457699,0.00024594,3]
[338147819,1726307446823,-335.11788326,0.00024594,3]
[338147820,1726307446835,-567.46602562,0.00024594,3]
[338147915,1726308638557,-480.02913384,0.00013014,2]
[338147916,1726308638570,-119.97086616,0.00013014,2]
[338147917,1726308638581,-162.468613,0.00013699,2]
[338147918,1726308638592,-198.855625,0.00022268,2]
[338147920,1726308638602,-193.51156517,0.00022279,2]
[338147930,1726308640541,-9.81378083,0.00022279,2]
[338147931,1726308640553,-300.0,0.00023139,2]
[338147932,1726308640564,-300.0,0.00023139,2]
[338147933,1726308640574,-1396.82542757,0.0002314,2]
[338147934,1726308640589,-17800.89512468,0.0002314,2]
[338147935,1726308640599,-4898.6450412,0.0002314,2]
[338147940,1726308643627,-558.63440655,0.0002314,2]
[338147941,1726308643637,-168.34332268,0.000239,2]
[338147942,1726308643649,-150.0,0.00024,2]
[338147943,1726308643661,-151.28822737,0.00024,2]
[338147944,1726308643671,-302.48582854,0.00024,2]
[338147945,1726308643683,-302.48582854,0.0002424,2]
[338147946,1726308643693,-500.0,0.00024451,2]
[338147947,1726308643703,-410.98536997,0.00024451,2]
[338147948,1726308643712,-2410.91913392,0.00024452,2]
[338147949,1726308643734,-5710.47705257,0.00024452,2]
[338147950,1726308643744,-1000.0,0.00024464,2]
[338147952,1726308643754,-302.48582854,0.0002448,2]
[338147954,1726308643764,-1027.0,0.000245,2]
[338147955,1726308643775,-409.56,0.00024544,3]
[338147956,1726308643785,-175.56642108,0.00024553,2]
[338147957,1726308643796,-500.0,0.00024553,2]
[338147958,1726308643808,-500.0,0.00024553,2]
[338147959,1726308643818,-500.0,0.00024553,2]
[338147960,1726308643829,-452.10980623,0.00024553,2]
[338147961,1726308643841,-500.0,0.00024553,2]
[338147962,1726308643851,-500.0,0.00024553,2]
[338147963,1726308643862,-500.0,0.00024553,2]
[338147964,1726308643873,-500.0,0.00024553,2]
[338147965,1726308643884,-500.0,0.00024553,2]
[338147966,1726308643893,-259.55161655,0.00024553,2]
[338147967,1726308643904,-500.0,0.00024553,2]
[338147968,1726308643914,-172.16184626,0.00024553,2]
[338147969,1726308643923,-500.0,0.00024553,2]
[338147970,1726308643933,-500.0,0.00024553,2]
[338147971,1726308643944,-500.0,0.00024553,2]
[338147972,1726308643955,-500.0,0.00024553,2]
[338147973,1726308643965,-224.13176672,0.00024553,2]
[338147974,1726308643976,-500.0,0.00024553,2]
[338147975,1726308643985,-500.0,0.00024553,2]
[338147976,1726308643997,-500.0,0.00024553,2]
[338147977,1726308644008,-300.0,0.00024553,2]
[338147978,1726308644020,-24503.28014712,0.00024553,7]
[338147979,1726308644030,-16719.6331041,0.00024554,3]
[338147980,1726308644043,-8587.37907927,0.00024554,3]
[338148104,1726309842743,-162.468613,0.00013699,2]
[338148105,1726309842753,-5200.85244201,0.0002,2]
[338148106,1726309842762,-170.5627919,0.00021869,2]
[338148107,1726309842771,-24890.0,0.00021985,2]
[338148108,1726309842781,-535.51903119,0.00023101,2]
[338148109,1726309842790,-300.0,0.00023101,2]
[338148110,1726309842799,-7820.03129475,0.0002327,2]
[338148111,1726309842809,-542.9912634,0.0002337,2]
[338148112,1726309842818,-465.00000345,0.00023461,2]
[338148113,1726309842828,-542.9912634,0.0002387,2]
[338148114,1726309842838,-2000.0,0.00024,3]
[338148115,1726309842850,-302.48582851,0.00024,2]
[338148117,1726309842859,-302.51602579,0.00024,2]
[338148118,1726309842869,-302.51602579,0.0002424,2]
[338148119,1726309842878,-542.9912634,0.0002437,2]
[338148120,1726309842889,-1000.0,0.00024433,2]
[338148121,1726309842899,-302.51602579,0.0002448,2]
[338148122,1726309842908,-409.56,0.00024504,3]
[338148123,1726309842920,-13699.13312245,0.00024513,7]
[338148190,1726311031989,-162.468613,0.00013699,2]
[338148191,1726311032001,-188.912843,0.00023045,2]
[338148192,1726311032011,-1000.0,0.00024,2]
[338148194,1726311032024,-302.48582854,0.00024,2]
[338148196,1726311032036,-200.0,0.00024,3]
[338148198,1726311032047,-300.91627685,0.00024,2]
[338148200,1726311032058,-302.48582854,0.0002424,2]
[338148202,1726311032068,-175.0719194,0.00024279,2]
[338148203,1726311032080,-300.0,0.00024379,2]
[338148204,1726311032090,-300.0,0.00024379,2]
[338148205,1726311032100,-3676.50570778,0.0002438,2]
[338148271,1726311040199,-387.59180224,0.0002337,2]
[338148287,1726311043108,-155.39946116,0.0002337,2]
[338148288,1726311043118,-542.9912634,0.0002387,2]
[338148289,1726311043127,-542.9912634,0.0002437,2]
[338148290,1726311043137,-1000.0,0.00024393,2]
[338148291,1726311043146,-194.15,0.00024464,3]
[338148292,1726311043156,-582.5,0.00024464,3]
[338148293,1726311043165,-452.10980623,0.00024473,2]
[338148294,1726311043175,-175.56642108,0.00024473,2]
[338148295,1726311043184,-500.0,0.00024473,2]
[338148296,1726311043194,-500.0,0.00024473,2]
[338148297,1726311043204,-500.0,0.00024473,2]
[338148298,1726311043214,-500.0,0.00024473,2]
[338148299,1726311043223,-500.0,0.00024473,2]
[338148300,1726311043233,-172.16184626,0.00024473,2]
[338148301,1726311043243,-500.0,0.00024473,2]
[338148302,1726311043252,-259.55161655,0.00024473,2]
[338148303,1726311043262,-500.0,0.00024473,2]
[338148304,1726311043271,-500.0,0.00024473,2]
[338148305,1726311043282,-500.0,0.00024473,2]
[338148306,1726311043292,-224.13176672,0.00024473,2]
[338148307,1726311043304,-500.0,0.00024473,2]
[338148308,1726311043313,-500.0,0.00024473,2]
[338148309,1726311043322,-500.0,0.00024473,2]
[338148310,1726311043331,-500.0,0.00024473,2]
[338148311,1726311043342,-500.0,0.00024473,2]
[338148312,1726311043352,-500.0,0.00024473,2]
[338148313,1726311043362,-500.0,0.00024473,2]
[338148314,1726311043374,-250.0,0.00024473,2]
[338148315,1726311043384,-500.0,0.00024473,2]
[338148316,1726311043394,-162.71979195,0.00024473,2]
[338148317,1726311043403,-500.0,0.00024473,2]
[338148318,1726311043412,-203.376145,0.00024473,7]
[338148319,1726311043422,-151.0,0.00024473,7]
[338148320,1726311043431,-178.208919,0.00024473,7]
[338148321,1726311043440,-178.208919,0.00024473,7]
[338148322,1726311043451,-337.669419,0.00024473,7]
[338148323,1726311043461,-337.669419,0.00024473,7]
[338148324,1726311043471,-5312.29476423,0.00024473,7]
[338148333,1726312123260,500.0,0.00028,120]
[338148382,1726312232283,-162.468613,0.00013699,2]
[338148384,1726312232296,-298.2,0.00016438,2]
[338148386,1726312232306,-298.2,0.000184,2]
[338148389,1726312232318,-298.2,0.00020363,2]
[338148391,1726312232330,-298.2,0.00022325,2]
[338148393,1726312232341,-500.0,0.0002337,2]
[338148395,1726312232351,-493.50000345,0.00023402,2]
[338148397,1726312232361,-321.73432105,0.0002387,2]
[338148571,1726312240352,-178.26567895,0.0002387,2]
[338148572,1726312240361,-187.238,0.00023964,5]
[338148573,1726312240371,-466.069,0.00023964,5]
[338148574,1726312240380,-298.2,0.00024287,2]
[338148575,1726312240389,-1000.0,0.00024344,2]
[338148577,1726312240399,-500.0,0.0002437,2]
[338148579,1726312240409,-486.61,0.00024424,3]
[338148580,1726312240418,-243.31,0.00024424,3]
[338148582,1726312240427,-452.10980623,0.00024433,2]
[338148583,1726312240436,-500.0,0.00024433,2]
[338148584,1726312240446,-500.0,0.00024433,2]
[338148585,1726312240456,-175.56642108,0.00024433,2]
[338148587,1726312240466,-500.0,0.00024433,2]
[338148588,1726312240476,-500.0,0.00024433,2]
[338148589,1726312240485,-500.0,0.00024433,2]
[338148590,1726312240494,-500.0,0.00024433,2]
[338148591,1726312240503,-500.0,0.00024433,2]
[338148592,1726312240512,-500.0,0.00024433,2]
[338148593,1726312240521,-500.0,0.00024433,2]
[338148594,1726312240531,-259.55161655,0.00024433,2]
[338148595,1726312240541,-172.16184626,0.00024433,2]
[338148596,1726312240550,-500.0,0.00024433,2]
[338148597,1726312240560,-500.0,0.00024433,2]
[338148598,1726312240570,-500.0,0.00024433,2]
[338148599,1726312240579,-224.13176672,0.00024433,2]
[338148600,1726312240588,-500.0,0.00024433,2]
[338148601,1726312240597,-500.0,0.00024433,2]
[338148602,1726312240607,-500.0,0.00024433,2]
[338148603,1726312240616,-500.0,0.00024433,2]
[338148604,1726312240626,-500.0,0.00024433,2]
[338148605,1726312240636,-500.0,0.00024433,2]
[338148606,1726312240645,-600.0,0.00024433,2]
[338148607,1726312240654,-444.50009,0.00024433,7]
[338148608,1726312240663,-444.50009,0.00024433,7]
[338148609,1726312240673,-155.629934,0.00024433,7]
[338148610,1726312240682,-163.846263,0.00024433,7]
[338148611,1726312240692,-163.846263,0.00024433,7]
[338148612,1726312240701,-19255.42203216,0.00024433,7]
[338148613,1726312240713,-2550.02,0.00024433,7]
[338148614,1726312240724,-2697.83811496,0.00024433,7]
[338148615,1726312240734,-204.12907977,0.00024434,3]
[338148642,1726312243255,-20257.30136082,0.00024434,3]
[338148646,1726312246554,-729.94,0.00024424,3]
[338148647,1726312246564,-466.54,0.00024434,3]
[338148652,1726312488683,1006.52378294,2.5e-05,2]
[338148655,1726312822142,5621.77,0.000111,2]
[338148684,1726313432418,-162.468613,0.00013699,2]
[338148686,1726313432431,-174.0,0.00016438,2]
[338148688,1726313432440,-174.0,0.000184,2]
[338148690,1726313432452,-174.0,0.00020363,2]
[338148692,1726313432462,-179.4672,0.00022181,2]
[338148694,1726313432472,-174.0,0.00022325,2]
[338148696,1726313432482,-671.965053,0.00023275,2]
[338148698,1726313432492,-415.0948282,0.00023478,2]
[338148701,1726313432503,-81.57654495,0.00024287,2]
[338148703,1726313432518,-92.42345505,0.00024287,2]
[338148706,1726313432532,-385.04402626,0.00024324,2]
[338148708,1726313432544,-299.005,0.00024324,2]
[338148718,1726313432630,-315.95097374,0.00024324,2]
[338148720,1726313432640,-593.07865619,0.00024334,7]
[338148810,1726313440547,-15570.70524142,0.00024334,7]
[338148811,1726313440556,-2750.53008062,0.00024364,2]
[338148812,1726313440566,-327.56,0.00024395,3]
[338148813,1726313440575,-163.78,0.00024395,3]
[338148814,1726313440585,-491.38,0.00024395,3]
[338148815,1726313440595,-316.47686436,0.00024404,2]
[338148816,1726313440604,-500.0,0.00024404,2]
[338148817,1726313440614,-500.0,0.00024404,2]
[338148818,1726313440623,-500.0,0.00024404,2]
[338148819,1726313440633,-381.68613159,0.00024404,2]
[338148820,1726313440643,-500.0,0.00024404,2]
[338148821,1726313440654,-320.51329239,0.00024404,2]
[338148823,1726313440665,-500.0,0.00024404,2]
[338148826,1726313440675,-500.0,0.00024404,2]
[338148827,1726313440683,-500.0,0.00024404,2]
[338148829,1726313440693,-500.0,0.00024404,2]
[338148831,1726313440703,-500.0,0.00024404,2]
[338148832,1726313440712,-376.89223671,0.00024404,2]
[338148834,1726313440722,-500.0,0.00024404,2]
[338148835,1726313440731,-500.0,0.00024404,2]
[338148836,1726313440741,-413.82456569,0.00024404,2]
[338148837,1726313440750,-151.0,0.00024404,7]
[338148838,1726313440759,-151.0,0.00024404,7]
[338148839,1726313440770,-151.0,0.00024404,7]
[338148840,1726313440780,-168.985923,0.00024404,7]
[338148841,1726313440790,-168.985923,0.00024404,7]
[338148842,1726313440800,-168.985923,0.00024404,7]
[338148843,1726313440809,-151.0,0.00024404,2]
[338148844,1726313440819,-249.856661,0.00024404,2]
[338148845,1726313440829,-168.985923,0.00024404,7]
[338148846,1726313440840,-168.985923,0.00024404,7]
[338148847,1726313440850,-168.985923,0.00024404,7]
[338148848,1726313440860,-1505.74293,0.00024404,7]
[338148849,1726313440871,-1505.74293,0.00024404,7]
[338148850,1726313440881,-1505.74293,0.00024404,7]
[338148851,1726313440891,-1505.74293,0.00024404,7]
[338148852,1726313440900,-1505.74293,0.00024404,7]
[338148853,1726313440911,-1505.74293,0.00024404,7]
[338148854,1726313440921,-692.405491,0.00024404,7]
[338148855,1726313440931,-692.405491,0.00024404,7]
[338148856,1726313440941,-692.405491,0.00024404,7]
[338148857,1726313440953,-692.405491,0.00024404,7]
[338148858,1726313440964,-692.405491,0.00024404,7]
[338148859,1726313440974,-155.006863,0.00024404,7]
[338148860,1726313440986,-692.405491,0.00024404,7]
[338148861,1726313440999,-4239.03199922,0.00024404,7]
[338148877,1726313443448,-14138.42811112,0.00024404,7]
[338148878,1726313443458,-6118.8732497,0.00024405,3]
[338148904,1726313446460,-597.8,0.00024405,3]
[338148943,1726314632525,-162.468613,0.00013699,2]
[338148945,1726314632538,-300.0,0.00016002,2]
[338148947,1726314632548,-13548.53683164,0.00016003,2]
[338149105,1726314638789,-10211.56379975,0.00016003,2]
[338149106,1726314638799,-305.0,0.00017602,2]
[338149107,1726314638809,-162.90794505,0.00023,2]
[338149108,1726314638818,-466.42500017,0.00023343,2]
[338149109,1726314638828,-6920.64575921,0.00023549,2]
[338149110,1726314638839,-6920.64575921,0.00023562,2]
[338149111,1726314638849,-1994.65537238,0.00023892,2]
[338149146,1726314640584,-150.0,0.00023852,2]
[338149147,1726314640595,-5923.31807302,0.00023874,2]
[338149148,1726314640604,-1000.0,0.00024,2]
[338149149,1726314640613,-250.0,0.00024255,2]
[338149150,1726314640624,-258.4974167,0.00024255,2]
[338149151,1726314640635,-500.0,0.00024255,2]
[338149152,1726314640645,-500.0,0.00024255,2]
[338149153,1726314640655,-500.0,0.00024255,2]
[338149154,1726314640663,-500.0,0.00024255,2]
[338149155,1726314640673,-641.34758971,0.00024255,2]
[338149156,1726314640682,-153.0,0.00024256,2]
[338149158,1726314640691,-153.0,0.00024256,2]
[338149160,1726314640701,-151.0,0.00024273,7]
[338149162,1726314640710,-151.0,0.00024273,7]
[338149164,1726314640720,-151.0,0.00024273,7]
[338149166,1726314640730,-151.0,0.00024273,7]
[338149168,1726314640739,-151.0,0.00024273,7]
[338149169,1726314640749,-1054.020051,0.00024273,7]
[338149170,1726314640759,-1054.020051,0.00024273,7]
[338149171,1726314640768,-203.376145,0.00024273,7]
[338149172,1726314640777,-522.039147,0.00024273,7]
[338149173,1726314640787,-522.039147,0.00024273,7]
[338149174,1726314640796,-1410.57,0.00024273,7]
[338149175,1726314640806,-1410.57,0.00024273,7]
[338149176,1726314640815,-150.0,0.00024275,2]
[338149177,1726314640825,-836.60082624,0.00024284,2]
[338149178,1726314640835,-151.0,0.00024287,2]
[338149179,1726314640847,-1000.0,0.00024294,2]
[338149180,1726314640856,-446.0684368,0.000243,2]
[338149181,1726314640865,-153.0,0.000243,2]
[338149182,1726314640874,-164.381605,0.00024306,7]
[338149183,1726314640883,-164.381605,0.00024306,7]
[338149184,1726314640893,-928.191626,0.00024306,7]
[338149185,1726314640902,-928.191626,0.00024306,7]
[338149186,1726314640911,-151.0,0.00024306,7]
[338149187,1726314640920,-151.0,0.00024306,7]
[338149188,1726314640929,-151.0,0.00024306,7]
[338149189,1726314640938,-151.0,0.00024306,7]
[338149190,1726314640947,-748.087706,0.00024306,7]
[338149191,1726314640957,-748.087706,0.00024306,7]
[338149192,1726314640966,-411.473622,0.00024306,7]
[338149193,1726314640975,-411.473622,0.00024306,7]
[338149194,1726314640984,-191.5883,0.00024306,7]
[338149195,1726314640993,-193.056081,0.00024306,7]
[338149196,1726314641003,-193.056081,0.00024306,7]
[338149197,1726314641013,-151.0,0.00024306,7]
[338149198,1726314641022,-244.1112,0.00024358,2]
[338149199,1726314641031,-500.0,0.00024373,2]
[338149200,1726314641040,-500.0,0.00024373,2]
[338149201,1726314641050,-500.0,0.00024373,2]
[338149202,1726314641060,-162.71979195,0.00024373,2]
[338149203,1726314641069,-500.0,0.00024373,2]
[338149204,1726314641078,-502.87252747,0.00024373,2]
[338149205,1726314641088,-500.0,0.00024373,2]
[338149206,1726314641097,-500.0,0.00024373,2]
[338149207,1726314641106,-500.0,0.00024373,2]
[338149208,1726314641115,-13783.09508276,0.00024373,7]
[338149209,1726314641124,-163.78,0.00024373,3]
[338149210,1726314641134,-491.34,0.00024373,3]
[338149211,1726314641142,-120.5821425,0.00024373,7]
[338149219,1726314643640,-30.4178575,0.00024373,7]
[338149220,1726314643650,-151.0,0.00024373,7]
[338149221,1726314643659,-151.0,0.00024373,7]
[338149222,1726314643668,-151.0,0.00024373,7]
[338149223,1726314643677,-151.0,0.00024373,7]
[338149224,1726314643686,-1054.020051,0.00024373,7]
[338149225,1726314643695,-1054.020051,0.00024373,7]
[338149226,1726314643704,-522.039147,0.00024373,7]
[338149227,1726314643714,-522.039147,0.00024373,7]
[338149229,1726314643725,-1410.57,0.00024373,7]
[338149231,1726314643734,-921.7669962,0.00024373,7]
[338149235,1726314658365,-172.86,0.00024373,3]
[338149236,1726314658375,-488.8030038,0.00024373,7]
[338149237,1726314658384,-5923.31807303,0.00024373,2]
[338149238,1726314658394,-500.0,0.00024382,2]
[338149239,1726314658403,-500.0,0.00024382,2]
[338149240,1726314658413,-500.0,0.00024382,2]
[338149242,1726314658422,-221.53380505,0.00024382,2]
[338149244,1726314658432,-178.73256918,0.00024382,2]
[338149246,1726314658441,-639.11575836,0.00024382,2]
[338149248,1726314658450,-500.0,0.00024382,2]
[338149249,1726314658459,-500.0,0.00024382,2]
[338149250,1726314658468,-173.30033809,0.00024382,2]
[338149251,1726314658477,-500.0,0.00024382,2]
[338149252,1726314658486,-500.0,0.00024382,2]
[338149253,1726314658496,-500.0,0.00024382,2]
[338149254,1726314658505,-500.0,0.00024382,2]
[338149255,1726314658515,-316.83358306,0.00024382,2]
[338149256,1726314658525,-500.0,0.00024382,2]
[338149257,1726314658534,-500.0,0.00024382,2]
[338149258,1726314658544,-380.0,0.00024382,2]
[338149259,1726314658554,-218.689446,0.00024382,7]
[338149260,1726314658563,-151.0,0.00024382,7]
[338149261,1726314658573,-151.0,0.00024382,7]
[338149262,1726314658583,-151.0,0.00024382,7]
[338149263,1726314658592,-151.0,0.00024382,7]
[338149264,1726314658601,-151.0,0.00024382,7]
[338149265,1726314658610,-151.0,0.00024382,7]
[338149266,1726314658619,-151.0,0.00024382,7]
[338149267,1726314658629,-151.0,0.00024382,7]
[338149268,1726314658638,-1054.020051,0.00024382,7]
[338149269,1726314658648,-1054.020051,0.00024382,7]
[338149270,1726314658657,-1054.020051,0.00024382,7]
[338149271,1726314658666,-1054.020051,0.00024382,7]
[338149272,1726314658676,-522.039147,0.00024382,7]
[338149273,1726314658686,-522.039147,0.00024382,7]
[338149274,1726314658695,-522.039147,0.00024382,7]
[338149275,1726314658704,-522.039147,0.00024382,7]
[338149276,1726314658713,-1410.57,0.00024382,7]
[338149277,1726314658723,-1410.57,0.00024382,7]
[338149278,1726314658732,-1410.57,0.00024382,7]
[338149279,1726314658742,-1410.57,0.00024382,7]
[338149280,1726314658751,-21458.46209119,0.00024383,3]
[338149281,1726314658763,-596.8,0.00024383,3]
[338149284,1726314943974,307.83,0.00010959,2]
[338149285,1726314954473,256.52,0.00010959,2]
[338149286,1726314965246,213.77,0.00010959,2]
[338149287,1726314975989,178.14,0.00010959,2]
[338149289,1726314986494,890.72,0.00010959,2]
[338149290,1726314988793,2000.0,0.00026,60]
[338149291,1726315012616,1117.0,0.00026,60]
[338149296,1726315489790,-1000.0,0.00019,19]
[338149297,1726315489959,-1000.0,0.00021,21]
[338149298,1726315490008,-1000.0,0.00023,23]
[338149299,1726315490054,-157.0,0.0002407,10]
[338149300,1726315490108,-300.0,0.000244,11]
[338149301,1726315490152,-14926.14267534,0.000245,10]
[338149302,1726315490195,-200.0,0.00024658,15]
[338149303,1726315490238,-1000.0,0.00025,25]
[338149304,1726315490278,-157.0,0.0002558,13]
[338149305,1726315490316,-600.0,0.0002564,12]
[338149306,1726315490354,-600.0,0.0002564,12]
[338149307,1726315490393,-333.736482,0.000259,12]
[338149308,1726315490431,-1023.7,0.00026,31]
[338149309,1726315490469,-600.0,0.00026239,14]
[338149310,1726315490507,-152.2,0.000266,31]
[338149311,1726315490547,-152.2,0.000266,31]
[338149312,1726315490587,-152.2,0.000266,31]
[338149313,1726315490629,-152.2,0.000266,31]
[338149314,1726315490667,-152.2,0.000266,31]
[338149315,1726315490704,-468.29283353,0.00026848,30]
[338149316,1726315490741,-770.59175883,0.00026898,30]
[338149317,1726315490778,-1000.0,0.00027,27]
[338149318,1726315490814,-157.0,0.000271,16]
[338149319,1726315490854,-510.49963657,0.00027229,10]
[338149320,1726315490892,-500.0,0.00027229,10]
[338149321,1726315490930,-500.0,0.00027229,10]
[338149322,1726315490967,-616.74891079,0.00027229,10]
[338149323,1726315491004,-500.0,0.00027229,10]
[338149324,1726315491043,-500.0,0.00027229,10]
[338149325,1726315491080,-500.0,0.00027229,10]
[338149326,1726315491118,-800.0,0.00027229,10]
[338149327,1726315491153,-500.0,0.00027229,10]
[338149328,1726315491188,-500.0,0.00027229,10]
[338149329,1726315491222,-700.0,0.00027229,10]
[338149330,1726315491256,-500.0,0.00027229,10]
[338149331,1726315491291,-500.0,0.00027229,10]
[338149332,1726315491326,-500.0,0.00027229,10]
[338149333,1726315491361,-500.0,0.00027229,10]
[338149334,1726315491397,-500.0,0.00027229,10]
[338149335,1726315491432,-500.0,0.00027229,10]